Workbook

Sheet паспорт
A1: ПАТ "УКРТРАНСГАЗ" | G1: ПАСПОРТ ФІЗИКО-ХІМІЧНИХ ПОКАЗНИКІВ ПРИРОДНОГО ГАЗУ № 616
A2: Філія "УМГ "ХАРКІВТРАНСГАЗ" | G2: переданого Криворізьким ЛВУМГ та прийнятого ПАТ "Дніпропетровськгаз", ПАТ"Дніпрогаз"
A3: Криворізьке ЛВУМГ | G3: Маршрут № 616
A4: Вимірювальна хіміко-аналітична лабораторія
A5: Свідоцтво № ПЄ 0048/2013 чинне до 16.05.2018р. | K5: по газопроводу ШДО, ШДКРІ | V5: за період з | X5: 2017-05-01 | Z5: по | AA5: 2017-05-31
A9: Число місяця | B9: Компонентний склад, мол. % | N9: Фізико-хімічні показники газу обчислені на основі компонентного складу, 101,325 кПа | X9: Температура точки роси за вологою (Р = 3.92 МПа), °С | Y9: Температура точки роси за вуглеводнями, °С | Z9: Вміст сірководню, г/м3 | AA9: Вміст меркаптанової сірки, г/м3 | AB9: Вміст механічних домішок, г/м3
N10: Густина абсолютна, кг/м3,при 20 °С, | O10: Температура вимірювання/згоряння при 20/25°С
B11: метан, С1 | C11: етан, С2 | D11: пропан, С3 | E11: ізо-бутан, і-С4 | F11: н-бутан, н-С4 | G11: нео-пентан, нео-С5 | H11: ізо-пентан, і-С5 | I11: н-пентан, н-С5 | J11: гексани та вищі, С6+ | K11: кисень, О2 | L11: азот, N2 | M11: діоксид вуглецю, CО2 | O11: Теплота згоряння нижча | R11: Теплота згоряння вища | U11: Число Воббе вище
O12: ккал/м³ | P12: МДж/м³ | Q12: кВт⋅год/м³ | R12: ккал/м³ | S12: МДж/м³ | T12: кВт⋅год/м³ | U12: ккал/м³ | V12: МДж/м³ | W12: кВт⋅год/м³
A13: 1 | O13: =P13*238.8459 -> 8221.075878 | P13: 34.42 | Q13: =P13/3.6 -> 9.561111111 | R13: =S13*238.8459 -> 9109.582626 | S13: 38.14 | T13: =S13/3.6 -> 10.59444444 | U13: =V13/0.0041868 -> 11913.63332 | V13: 49.88 | W13: =V13/3.6 -> 13.85555556 | AB13: не виявл.
A14: 2 | O14: 8221.075878 | P14: 34.42 | Q14: 9.561111111 | R14: 9109.582626 | S14: 38.14 | T14: 10.59444444 | U14: 11913.63332 | V14: 49.88 | W14: 13.85555556
A15: 3 | B15: 94.8752 | C15: 2.8378 | D15: 0.9272 | E15: 0.1416 | F15: 0.1462 | G15: 0.0015 | H15: 0.0283 | I15: 0.0202 | J15: 0.0192 | K15: 0.0049 | L15: 0.7351 | M15: 0.2628 | N15: 0.7093 | O15: =P15*238.8459 -> 8268.845058 | P15: 34.62 | Q15: =P15/3.6 -> 9.616666667 | R15: =S15*238.8459 -> 9162.128724 | S15: 38.36 | T15: =S15/3.6 -> 10.65555556 | U15: =V15/0.0041868 -> 11937.51791 | V15: 49.98 | W15: =V15/3.6 -> 13.88333333 | AD15: =IF(AC15=100,"ОК"," ") -> 
A16: 4 | B16: 94.8003 | C16: 2.8788 | D16: 0.9468 | E16: 0.1467 | F16: 0.1525 | G16: 0.0016 | H16: 0.0302 | I16: 0.0221 | J16: 0.0227 | K16: 0.0039 | L16: 0.7286 | M16: 0.2657 | N16: 0.7102 | O16: =P16*238.8459 -> 8278.398894 | P16: 34.66 | Q16: =P16/3.6 -> 9.627777778 | R16: =S16*238.8459 -> 9171.68256 | S16: 38.4 | T16: =S16/3.6 -> 10.66666667 | U16: =V16/0.0041868 -> 11944.68329 | V16: 50.01 | W16: =V16/3.6 -> 13.89166667 | X16: -17.6 | Y16: -14.8 | AD16: =IF(AC16=100,"ОК"," ") -> 
A17: 5 | O17: =P17*238.8459 -> 8278.398894 | P17: 34.66 | Q17: =P17/3.6 -> 9.627777778 | R17: =S17*238.8459 -> 9171.68256 | S17: 38.4 | T17: =S17/3.6 -> 10.66666667 | U17: =V17/0.0041868 -> 11944.68329 | V17: 50.01 | W17: =V17/3.6 -> 13.89166667
A18: 6 | O18: 8278.398894 | P18: 34.66 | Q18: 9.627777778 | R18: 9171.68256 | S18: 38.4 | T18: 10.66666667 | U18: 11944.68329 | V18: 50.01 | W18: 13.89166667
A19: 7 | O19: 8278.398894 | P19: 34.66 | Q19: 9.627777778 | R19: 9171.68256 | S19: 38.4 | T19: 10.66666667 | U19: 11944.68329 | V19: 50.01 | W19: 13.89166667
A20: 8 | O20: 8278.398894 | P20: 34.66 | Q20: 9.627777778 | R20: 9171.68256 | S20: 38.4 | T20: 10.66666667 | U20: 11944.68329 | V20: 50.01 | W20: 13.89166667
A21: 9 | O21: 8278.398894 | P21: 34.66 | Q21: 9.627777778 | R21: 9171.68256 | S21: 38.4 | T21: 10.66666667 | U21: 11944.68329 | V21: 50.01 | W21: 13.89166667
A22: 10 | B22: 95.419 | C22: 2.4267 | D22: 0.79 | E22: 0.1208 | F22: 0.1296 | G22: 0.0014 | H22: 0.0268 | I22: 0.0199 | J22: 0.0218 | K22: 0.005 | L22: 0.8211 | M22: 0.218 | N22: 0.7045 | O22: =P22*238.8459 -> 8216.29896 | P22: 34.4 | Q22: =P22/3.6 -> 9.555555556 | R22: =S22*238.8459 -> 9104.805708 | S22: 38.12 | T22: =S22/3.6 -> 10.58888889 | U22: =V22/0.0041868 -> 11904.07949 | V22: 49.84 | W22: =V22/3.6 -> 13.84444444 | X22: -17.9 | Y22: -14.3 | Z22: <0,0001 | AA22: 0.0027
A23: 11 | O23: =P23*238.8459 -> 8216.29896 | P23: 34.4 | Q23: =P23/3.6 -> 9.555555556 | R23: =S23*238.8459 -> 9104.805708 | S23: 38.12 | T23: =S23/3.6 -> 10.58888889 | U23: =V23/0.0041868 -> 11904.07949 | V23: 49.84 | W23: =V23/3.6 -> 13.84444444
A24: 12 | B24: 95.517 | C24: 2.3297 | D24: 0.7442 | E24: 0.1125 | F24: 0.1232 | G24: 0.0013 | H24: 0.026 | I24: 0.0197 | J24: 0.0242 | K24: 0.0073 | L24: 0.8789 | M24: 0.2159 | N24: 0.7035 | O24: 8197.191288 | P24: 34.32 | Q24: 9.533333333 | R24: 9083.309577 | S24: 38.03 | T24: 10.56388889 | U24: 11887.36028 | V24: 49.77 | W24: 13.825
A25: 13 | O25: =P25*238.8459 -> 8197.191288 | P25: 34.32 | Q25: =P25/3.6 -> 9.533333333 | R25: =S25*238.8459 -> 9083.309577 | S25: 38.03 | T25: =S25/3.6 -> 10.56388889 | U25: =V25/0.0041868 -> 11887.36028 | V25: 49.77 | W25: =V25/3.6 -> 13.825
A26: 14 | O26: 8197.191288 | P26: 34.32 | Q26: 9.533333333 | R26: 9083.309577 | S26: 38.03 | T26: 10.56388889 | U26: 11887.36028 | V26: 49.77 | W26: 13.825
A27: 15 | B27: 95.1556 | C27: 2.6129 | D27: 0.846 | E27: 0.1284 | F27: 0.1375 | G27: 0.0015 | H27: 0.0283 | I27: 0.0209 | J27: 0.0239 | K27: 0.0051 | L27: 0.7935 | M27: 0.2463 | N27: 0.7069 | O27: =P27*238.8459 -> 8237.795091 | P27: 34.49 | Q27: =P27/3.6 -> 9.580555556 | R27: =S27*238.8459 -> 9128.690298 | S27: 38.22 | T27: =S27/3.6 -> 10.61666667 | U27: =V27/0.0041868 -> 11916.02178 | V27: 49.89 | W27: =V27/3.6 -> 13.85833333 | Z27: <0,0001 | AA27: 0.0029
A28: 16 | O28: =P28*238.8459 -> 8237.795091 | P28: 34.49 | Q28: =P28/3.6 -> 9.580555556 | R28: =S28*238.8459 -> 9128.690298 | S28: 38.22 | T28: =S28/3.6 -> 10.61666667 | U28: =V28/0.0041868 -> 11916.02178 | V28: 49.89 | W28: =V28/3.6 -> 13.85833333
A29: 17 | B29: 95.2328 | C29: 2.5823 | D29: 0.8244 | E29: 0.1251 | F29: 0.1324 | G29: 0.0014 | H29: 0.027 | I29: 0.0199 | J29: 0.0208 | K29: 0.0047 | L29: 0.7893 | M29: 0.2398 | N29: 0.7061 | O29: 8230.629714 | P29: 34.46 | Q29: 9.572222222 | R29: 9121.524921 | S29: 38.19 | T29: 10.60833333 | U29: 11913.63332 | V29: 49.88 | W29: 13.85555556 | X29: -18.2 | Y29: -16
A30: 18 | O30: =P30*238.8459 -> 8230.629714 | P30: 34.46 | Q30: =P30/3.6 -> 9.572222222 | R30: =S30*238.8459 -> 9121.524921 | S30: 38.19 | T30: =S30/3.6 -> 10.60833333 | U30: =V30/0.0041868 -> 11913.63332 | V30: 49.88 | W30: =V30/3.6 -> 13.85555556
A31: 19 | O31: 8230.629714 | P31: 34.46 | Q31: 9.572222222 | R31: 9121.524921 | S31: 38.19 | T31: 10.60833333 | U31: 11913.63332 | V31: 49.88 | W31: 13.85555556
A32: 20 | O32: 8230.629714 | P32: 34.46 | Q32: 9.572222222 | R32: 9121.524921 | S32: 38.19 | T32: 10.60833333 | U32: 11913.63332 | V32: 49.88 | W32: 13.85555556 | AD32: =IF(AC32=100,"ОК"," ") -> 
A33: 21 | O33: 8230.629714 | P33: 34.46 | Q33: 9.572222222 | R33: 9121.524921 | S33: 38.19 | T33: 10.60833333 | U33: 11913.63332 | V33: 49.88 | W33: 13.85555556
A34: 22 | B34: 95.0045 | C34: 2.7718 | D34: 0.9003 | E34: 0.1384 | F34: 0.1443 | G34: 0.0016 | H34: 0.0291 | I34: 0.0213 | J34: 0.0224 | K34: 0.0043 | L34: 0.7139 | M34: 0.2482 | N34: 0.7084 | O34: =P34*238.8459 -> 8264.06814 | P34: 34.6 | Q34: =P34/3.6 -> 9.611111111 | R34: =S34*238.8459 -> 9157.351806 | S34: 38.34 | T34: =S34/3.6 -> 10.65 | U34: =V34/0.0041868 -> 11939.90637 | V34: 49.99 | W34: =V34/3.6 -> 13.88611111 | Z34: <0,0001 | AA34: 0.0044
A35: 23 | O35: =P35*238.8459 -> 8264.06814 | P35: 34.6 | Q35: =P35/3.6 -> 9.611111111 | R35: =S35*238.8459 -> 9157.351806 | S35: 38.34 | T35: =S35/3.6 -> 10.65 | U35: =V35/0.0041868 -> 11939.90637 | V35: 49.99 | W35: =V35/3.6 -> 13.88611111 | AD35: =IF(AC35=100,"ОК"," ") -> 
A36: 24 | O36: 8264.06814 | P36: 34.6 | Q36: 9.611111111 | R36: 9157.351806 | S36: 38.34 | T36: 10.65 | U36: 11939.90637 | V36: 49.99 | W36: 13.88611111
A37: 25 | B37: 94.9604 | C37: 2.799 | D37: 0.9081 | E37: 0.1388 | F37: 0.145 | G37: 0.0016 | H37: 0.0289 | I37: 0.0211 | J37: 0.0229 | K37: 0.004 | L37: 0.7161 | M37: 0.2541 | N37: 0.7087 | O37: =P37*238.8459 -> 8266.456599 | P37: 34.61 | Q37: =P37/3.6 -> 9.613888889 | R37: =S37*238.8459 -> 9159.740265 | S37: 38.35 | T37: =S37/3.6 -> 10.65277778 | U37: =V37/0.0041868 -> 11939.90637 | V37: 49.99 | W37: =V37/3.6 -> 13.88611111 | X37: -17.6 | Y37: -14.3
A38: 26 | O38: =P38*238.8459 -> 8266.456599 | P38: 34.61 | Q38: =P38/3.6 -> 9.613888889 | R38: =S38*238.8459 -> 9159.740265 | S38: 38.35 | T38: =S38/3.6 -> 10.65277778 | U38: =V38/0.0041868 -> 11939.90637 | V38: 49.99 | W38: =V38/3.6 -> 13.88611111
A39: 27 | O39: 8266.456599 | P39: 34.61 | Q39: 9.613888889 | R39: 9159.740265 | S39: 38.35 | T39: 10.65277778 | U39: 11939.90637 | V39: 49.99 | W39: 13.88611111
A40: 28 | O40: 8266.456599 | P40: 34.61 | Q40: 9.613888889 | R40: 9159.740265 | S40: 38.35 | T40: 10.65277778 | U40: 11939.90637 | V40: 49.99 | W40: 13.88611111
A41: 29 | O41: 8266.456599 | P41: 34.61 | Q41: 9.613888889 | R41: 9159.740265 | S41: 38.35 | T41: 10.65277778 | U41: 11939.90637 | V41: 49.99 | W41: 13.88611111
A42: 30 | O42: 8266.456599 | P42: 34.61 | Q42: 9.613888889 | R42: 9159.740265 | S42: 38.35 | T42: 10.65277778 | U42: 11939.90637 | V42: 49.99 | W42: 13.88611111
A43: 31 | B43: 95.2394 | C43: 2.6163 | D43: 0.8781 | E43: 0.1373 | F43: 0.1428 | G43: 0.0016 | H43: 0.0284 | I43: 0.0207 | J43: 0.0223 | K43: 0.0056 | L43: 0.6894 | M43: 0.2182 | N43: 0.7066 | O43: =P43*238.8459 -> 8254.514304 | P43: 34.56 | Q43: =P43/3.6 -> 9.6 | R43: =S43*238.8459 -> 9147.79797 | S43: 38.3 | T43: =S43/3.6 -> 10.63888889 | U43: =V43/0.0041868 -> 11942.29483 | V43: 50 | W43: =V43/3.6 -> 13.88888889 | Z43: <0,0001 | AA43: 0.0023 | AB43: не виявл.
A44: Рівень одоризації відповідає чинним нормативним документам | O44: 8247.111617 | P44: 34.52900643 | Q44: 9.591390675 | R44: 9138.485318 | S44: 38.26100979 | T44: 10.62805827
H45: Середньозважене значення теплоти згоряння:
B48: Начальник Криворізького ЛВУМГ Охримчук А.О. 1.06.2017р.
C49: Підрозділу підприємства, якому підпорядкована лабораторія | O49: прізвище | R49: підпис | V49: дата
B50: Завідувач лабораторії Степанова О.Г. 1.06.2017р.
C51: Лабораторія, де здійснювалось вимірювання газу | O51: прізвище | R51: підпис | V51: дата
B52: Начальник служби ГВ та М Байда Ю.А. 1.06.2017р.
C53: Підрозділу, відповідального за облік газу за маршрутом | O53: прізвище | R53: підпис | V53: дата

Sheet додаток
A2: Додаток до Паспорту фізико-хімічних показників природного газу № 616
A4: Область | B4: ГРС, прямий споживач | C4: Cередньозважене значення вищої теплоти згоряння
C5: МДж/м³ | D5: ккал/м³ | E5: кВт*год./м³
A6: Дніпропетровська область | B6: ГРС 2 м.Дніпродзержинськ | C6: 38.26048798 | D6: 9138.360687 | E6: 10.62791333
B7: ГРС Вороновиця
B8: ГРС Побережне
B9: ГРС Іллінці
B10: ГРС Тягун
B11: ГРС Оратів
B12: ГРС Осична
B13: ГРС Росоша
B14: ГРС Погребище
B15: ГРС Вороновиця
B16: ГРС Побережне
B17: ГРС Іллінці
B18: ГРС Тягун
B19: ГРС Оратів
B20: ГРС Осична
B21: ГРС Росоша
B22: ГРС Погребище
B23: ГРС Вороновиця
B24: ГРС Побережне
B25: ГРС Іллінці
B26: ГРС Тягун
B27: ГРС Оратів
B28: ГРС Осична
B29: ГРС Росоша
B30: ГРС Погребище
B31: ГРС Вороновиця
B32: ГРС Побережне
B33: ГРС Іллінці
B34: ГРС Тягун
B35: ГРС Оратів
B36: ГРС Осична
B37: ГРС Росоша
B38: ГРС Погребище
B39: ГРС с.Ново Залісся | C39: 38.23629887 | D39: 9132.583216 | E39: 10.62119413
B40: ГРС с.Вишневе П'ятихатський р-н | C40: 38.23860684 | D40: 9133.134466 | E40: 10.62183523
B41: ГРС к-п Дружба | C41: 0 | D41: 0 | E41: 0
B42: ГРСс. Семенівка к-п Заря комунізму | C42: 38.23223907 | D42: 9131.61355 | E42: 10.62006641
B43: ГРС с.Сурсько-Михайлівка | C43: 38.2398759 | D43: 9133.437574 | E43: 10.62218775
B44: ГРС м.Вільногірськ | C44: 38.2665898 | D44: 9139.81808 | E44: 10.62960828
B45: ГРС м.Верхівцеве | C45: 38.23625608 | D45: 9132.572996 | E45: 10.62118224
B46: ГРС м.Верхньодніпровськ | C46: 38.23792475 | D46: 9132.971552 | E46: 10.62164577
B47: ГРС 1 м.Дніпродзержинськ | C47: 38.25205656 | D47: 9136.346876 | E47: 10.62557127
B48: ГРС с.Лихівка | C48: 38.231112 | D48: 9131.344353 | E48: 10.61975333
B49: ГРС м. Дніпродзержинськ ВО "АЗОТ"1 | C49: 38.26256475 | D49: 9138.856714 | E49: 10.62849021
B50: ГРС АЗОТ( ПАТ Дніпрогаз) | C50: 38.24189405 | D50: 9133.919603 | E50: 10.62274835
B51: ГРС 3 м.Дніпродзержинськ | C51: 38.24345692 | D51: 9134.292887 | E51: 10.62318248
B52: ГРС 3 м.Дніпродзержинськ
A53: Середньозважене значення вищої теплоти згоряння по маршруту №616 | C53: 38.26100979 | D53: 9138.485318 | E53: 10.62805827
A57: Начальник Криворізького ЛВУМГ | D57: Охримчук А.О. | F57: 1.06.2017р.
A58: Підрозділу підприємства, якому підпорядкована лабораторія | D58: прізвище | E58: підпис | F58: дата
A59: Завідувач лабораторії | D59: Степанова О.Г. | F59: 1.06.2017р.
A60: Лабораторія, де здійснювалось вимірювання газу | D60: прізвище | E60: підпис | F60: дата
A61: Начальник служби ГВ та М | D61: Байда Ю.А. | F61: 1.06.2017р.
A62: Підрозділу, відповідального за облік газу за маршрутом | D62: прізвище | E62: підпис | F62: дата

Sheet variablesList (hidden)
A1: 3 | B1: x:\gaysin | C1: 10, 11, 24, 25, 127, 128, 132, 180, 207, 215 | D1: x:\
B2: x:\Illinci
B3: x:\Talne
